bitfinex/quotes_SOLUSD_20241031
["timestamp","ask_amount","ask_price","bid_price","bid_amount"]
[1730383519990,20.5049,170.69,170.64,0.1]
[1730383520220,43.36974585,170.65,170.64,0.1]
[1730383520419,49.22964585,170.65,170.64,0.1]
[1730383520586,43.36974585,170.65,170.64,0.1]
[1730383520919,43.36974585,170.65,170.64,0.2]
[1730383521215,43.36974585,170.65,170.64,0.1]
[1730383521403,49.22964585,170.65,170.64,0.1]
[1730383521908,43.36974585,170.65,170.64,0.2]
[1730383522212,43.36974585,170.65,170.6,5.8615]
[1730383522213,49.35513585,170.65,170.63,0.1]
[1730383522421,0.12549,170.63,170.6,0.1]
[1730383522579,0.12549,170.6,170.59,0.2]
[1730383522778,43.49523585,170.6,170.57,0.1]
[1730383523082,0.12549,170.6,170.59,0.1]
[1730383523389,43.49523585,170.6,170.58,0.2]
[1730383523598,43.49523585,170.59,170.58,0.1]
[1730383524006,43.49523585,170.59,170.58,0.2]
[1730383524794,49.35723585,170.59,170.58,0.2]
[1730383525193,49.35723585,170.59,170.58,0.1]
[1730383525487,43.36974585,170.59,170.58,0.1]
[1730383525696,43.36974585,170.59,170.58,0.2]
[1730383526103,43.36974585,170.61,170.6,0.2]
[1730383526409,43.36974585,170.62,170.61,0.2]
[1730383526618,43.36974585,170.63,170.62,0.2]
[1730383526924,43.36974585,170.63,170.59,0.1]
[1730383527084,43.36974585,170.63,170.53,16.3085]
[1730383527085,6.0579135,170.63,170.53,16.3085]
[1730383527290,7.2888795,170.62,170.56,0.1]
[1730383527504,6.0579135,170.63,170.56,0.2]
[1730383527816,6.0579135,170.63,170.54,0.1]
[1730383528006,24.027864,170.62,170.53,0.1]
[1730383528316,24.027864,170.62,170.53,0.2]
[1730383528317,43.36974585,170.54,170.53,0.2]
[1730383530093,49.23344585,170.54,170.53,0.1]
[1730383530294,43.36974585,170.54,170.53,0.2]
[1730383530923,49.23344585,170.54,170.52,0.2]
[1730383531206,49.23344585,170.54,170.51,0.2]
[1730383531207,0.12549,170.52,170.51,0.2]
[1730383531413,43.36974585,170.52,170.51,0.2]
[1730383532404,5.99019,170.51,170.5,0.1]
[1730383532607,32.76462345,170.51,170.5,0.1]
[1730383532792,0.12549,170.5,170.49,0.2]
[1730383532997,0.12549,170.53,170.52,0.1]
[1730383533196,26.89992345,170.55,170.54,0.2]
[1730383533397,26.77443345,170.55,170.54,0.2]
[1730383533595,53.5488669,170.55,170.54,0.2]
[1730383533805,53.5488669,170.55,170.46,0.1]
[1730383533806,59.4121669,170.55,170.53,0.1]
[1730383533998,47.29613345,170.55,170.53,0.2]
[1730383534208,32.63773345,170.55,170.53,0.2]
[1730383534513,26.77443345,170.55,170.54,0.2]
[1730383534719,53.5488669,170.55,170.54,0.2]
[1730383535012,53.5488669,170.55,170.54,0.1]
[1730383535013,59.4121669,170.55,170.54,0.1]
[1730383535215,59.4121669,170.55,170.54,0.2]
[1730383535603,59.4121669,170.55,170.54,0.1]
[1730383535908,59.4121669,170.55,170.44,6.1426]
[1730383535909,0.12549,170.54,170.51,0.1]
[1730383536112,26.77443345,170.52,170.51,0.1]
[1730383536616,32.63883345,170.52,170.51,0.1]
[1730383537520,26.77443345,170.52,170.51,0.1]
[1730383538020,32.63883345,170.52,170.51,0.1]
[1730383538897,32.63883345,170.52,170.44,6.1426]
[1730383538898,32.63883345,170.52,170.5,0.1]
[1730383539097,0.12549,170.5,170.47,0.1]
[1730383539308,26.77443345,170.48,170.47,0.1]
[1730383539502,53.5488669,170.48,170.46,0.1]
[1730383539714,0.12549,170.46,170.37,22.0518]
[1730383539917,26.77443345,170.4,170.37,22.0518]
[1730383540920,26.77443345,170.38,170.37,22.0518]
[1730383541128,26.77443345,170.41,170.37,22.93193141]
[1730383541298,26.77443345,170.4,170.37,22.93193141]
[1730383541625,26.77443345,170.41,170.37,22.93193141]
[1730383542214,26.77443345,170.39,170.37,22.93193141]
[1730383543233,26.77443345,170.38,170.32,15.7052]
[1730383543403,14.6685,170.44,170.32,15.7052]
[1730383543404,26.77443345,170.35,170.32,15.7052]
[1730383544103,26.77443345,170.37,170.32,15.7052]
[1730383544331,26.77443345,170.36,170.32,15.7052]
[1730383544506,26.77443345,170.35,170.32,36.2543]
[1730383545214,26.77443345,170.35,170.32,30.3834]
[1730383545424,26.77443345,170.35,170.32,15.7052]
[1730383545627,26.77443345,170.33,170.32,15.7052]
[1730383545826,26.77443345,170.33,170.3,0.88054261]
[1730383546420,26.77443345,170.34,170.3,6.75234261]
[1730383546624,26.77443345,170.34,170.3,21.43224261]
[1730383547010,26.77443345,170.34,170.3,21.43234261]
[1730383547529,26.77443345,170.34,170.3,15.56044261]
[1730383547821,26.77443345,170.34,170.3,21.43234261]
[1730383548408,26.77443345,170.33,170.3,21.43234261]
[1730383549303,32.64543345,170.33,170.3,0.88054261]
[1730383549507,26.77443345,170.36,170.31,0.1]
[1730383549714,26.77443345,170.36,170.3,33.62677606]
[1730383549715,26.77443345,170.37,170.32,26.97443345]
[1730383549932,26.77443345,170.37,170.32,26.87443345]
[1730383550120,26.77443345,170.36,170.31,26.77443345]
[1730383550329,26.77443345,170.35,170.3,48.30667606]
[1730383550630,26.77443345,170.35,170.3,48.20667606]
[1730383550937,26.77443345,170.35,170.31,0.1]
[1730383551130,26.77443345,170.4,170.34,26.87443345]
[1730383551437,26.77443345,170.39,170.35,16.4826]
[1730383551729,26.77443345,170.4,170.35,43.35703345]
[1730383552114,26.77443345,170.43,170.38,26.77443345]
[1730383552307,26.77443345,170.44,170.39,26.77443345]
[1730383552735,26.77443345,170.44,170.4,20.5398]
[1730383552902,26.77443345,170.45,170.4,20.5398]
[1730383553401,26.77443345,170.46,170.41,26.77443345]
[1730383554149,26.77443345,170.49,170.44,42.98853345]
[1730383554339,6.3566,170.57,170.46,26.77443345]
[1730383554340,26.77443345,170.51,170.46,26.77443345]
[1730383554515,26.77443345,170.54,170.48,26.87443345]
[1730383554830,26.77443345,170.54,170.48,26.77443345]
[1730383555038,26.77443345,170.56,170.51,26.77443345]
[1730383555208,26.77443345,170.57,170.52,26.77443345]
[1730383555628,26.77443345,170.58,170.52,26.77443345]
[1730383555809,26.77443345,170.56,170.51,26.77443345]
[1730383556013,26.77443345,170.57,170.52,26.77443345]
[1730383556353,26.77443345,170.61,170.55,26.77443345]
[1730383556531,26.77443345,170.63,170.57,0.1]
[1730383556822,26.77443345,170.64,170.59,26.77443345]
[1730383557232,5.8582,170.7,170.62,26.77443345]
[1730383557233,26.77443345,170.67,170.62,26.77443345]
[1730383557419,26.77443345,170.68,170.62,26.77443345]
[1730383557622,14.6406,170.76,170.64,26.77443345]
[1730383557623,26.77443345,170.69,170.64,26.77443345]
[1730383558031,26.77443345,170.7,170.65,5.8599]
[1730383558233,26.77443345,170.7,170.65,32.63433345]
[1730383558528,43.41420364,170.66,170.61,0.87895684]
[1730383558730,43.41420364,170.63,170.61,0.87895684]
[1730383558916,43.41420364,170.64,170.61,0.87895684]
[1730383559239,43.41420364,170.66,170.61,6.74015684]
[1730383559403,43.41420364,170.67,170.62,43.41420364]
[1730383559728,43.41420364,170.66,170.61,50.15436048]
[1730383559946,43.41420364,170.68,170.62,43.41420364]
[1730383560106,43.41420364,170.68,170.63,49.27480364]
[1730383560302,43.41420364,170.68,170.63,63.92630364]
[1730383560526,43.41420364,170.71,170.65,43.41420364]
[1730383560829,43.41420364,170.71,170.66,43.41420364]
[1730383561002,43.41420364,170.71,170.65,43.41420364]
[1730383561207,43.41420364,170.71,170.66,43.41420364]
[1730383561514,49.27140364,170.73,170.67,43.41420364]
[1730383561831,43.41420364,170.73,170.67,43.41420364]
[1730383562019,43.41420364,170.72,170.66,0.1]
[1730383562330,43.41420364,170.74,170.68,43.41420364]
[1730383562542,5.8554,170.78,170.68,43.41420364]
[1730383562543,43.41420364,170.76,170.68,0.1]
[1730383562714,43.41420364,170.79,170.73,43.51420364]
[1730383562917,43.41420364,170.8,170.73,0.1]
[1730383563110,5.8541,170.82,170.73,0.1]
[1730383563320,43.41420364,170.79,170.73,43.41420364]
[1730383563522,43.41420364,170.79,170.74,43.41420364]
[1730383563732,49.26830364,170.82,170.76,43.41420364]
[1730383564053,0.616689,170.83,170.81,49.26860364]
[1730383564751,0.616689,170.83,170.81,49.36860364]
[1730383565153,0.616689,170.83,170.81,49.26860364]
[1730383565651,0.616689,170.83,170.81,64.00470364]
[1730383565850,14.6251,170.94,170.81,64.00470364]
[1730383565851,5.8515,170.9,170.82,0.1]
[1730383566024,43.41420364,170.88,170.83,43.41420364]
[1730383566226,43.41420364,170.9,170.84,43.41420364]
[1730383566420,43.41420364,170.91,170.86,43.41420364]
[1730383566626,5.8493,170.96,170.86,43.41420364]
[1730383566627,43.41420364,170.92,170.86,43.41420364]
[1730383566860,5.8493,170.96,170.82,49.86270364]
[1730383566861,43.41420364,170.94,170.88,43.41420364]
[1730383567163,43.41420364,170.96,170.91,43.41420364]
[1730383567448,5.8482,170.99,170.94,43.41420364]
[1730383567449,43.41420364,170.99,170.94,43.41420364]
[1730383567946,43.41420364,171.03,170.95,0.1]
[1730383568247,43.41420364,171.04,170.98,43.41420364]
[1730383568450,43.41420364,171.02,170.97,43.41420364]
[1730383568744,43.41420364,171.04,170.98,43.41420364]
[1730383568948,43.41420364,171.07,171.0,43.41420364]
[1730383569132,43.41420364,171.05,171.0,43.41420364]
[1730383569340,5.8452,171.08,171.0,43.41420364]
[1730383569341,43.41420364,171.06,171.0,43.41420364]
[1730383569533,43.41420364,171.05,170.99,43.51420364]
[1730383569852,5.8456,171.07,171.0,5.9479]
[1730383570021,43.41420364,171.04,171.0,5.8479]
[1730383570220,43.41420364,171.04,170.99,43.41420364]
[1730383570427,43.41420364,171.04,170.99,49.26240364]
[1730383570734,14.6092,171.13,170.99,49.26240364]
[1730383570735,43.41420364,171.07,171.0,43.41420364]
[1730383570937,43.41420364,171.04,170.99,64.7597389]
[1730383571262,43.41420364,171.06,171.01,43.41420364]
[1730383571554,5.8438,171.12,171.01,0.1]
[1730383571725,5.8438,171.12,171.02,6.0472]
[1730383571931,5.8438,171.12,171.02,21.1768]
[1730383572126,5.8421,171.17,171.03,0.2]
[1730383572329,5.8421,171.17,171.05,0.1]
[1730383572522,43.41420364,171.12,171.07,43.41420364]
[1730383572732,43.41420364,171.15,171.09,43.41420364]
[1730383572928,43.41420364,171.17,171.11,43.51420364]
[1730383573152,43.41420364,171.17,171.12,43.41420364]
[1730383573358,0.616689,171.18,171.14,43.41420364]
[1730383573558,0.616689,171.18,171.14,43.51420364]
[1730383573731,0.616689,171.18,171.14,43.41420364]
[1730383574062,0.616689,171.18,171.17,43.41420364]
[1730383574228,0.616689,171.18,171.17,43.51420364]
[1730383574430,5.8392,171.26,171.19,0.1]
[1730383574431,43.41420364,171.26,171.19,0.1]
[1730383574651,11.90359265,171.33,171.25,0.1]
[1730383574866,43.41420364,171.31,171.26,43.41420364]
[1730383575155,43.41420364,171.32,171.26,43.51420364]
[1730383575366,43.41420364,171.32,171.26,43.41420364]
[1730383575658,0.616689,171.36,171.25,0.87559241]
[1730383575659,43.41420364,171.3,171.25,0.87559241]
[1730383575825,43.41420364,171.3,171.25,50.12899605]
[1730383576029,43.41420364,171.27,171.25,0.87559241]
[1730383576240,43.41420364,171.26,171.25,0.87559241]
[1730383576654,43.41420364,171.26,171.16,41.5958]
[1730383576858,0.1,171.31,171.16,41.6958]
[1730383577164,0.1,171.32,171.16,41.6958]
[1730383577335,0.25098,171.31,171.16,41.5958]
[1730383577660,0.25098,171.31,171.17,0.1]
[1730383577834,43.41420364,171.23,171.17,63.96140364]
[1730383578036,43.41420364,171.24,171.18,43.51420364]
[1730383578228,43.41420364,171.25,171.19,43.41420364]
[1730383578434,43.41420364,171.22,171.19,0.87571866]
[1730383579131,43.41420364,171.2,171.19,0.87571866]
[1730383579328,43.41420364,171.23,171.19,0.87571866]
[1730383579560,43.41420364,171.25,171.19,44.2899223]
[1730383579734,43.41420364,171.22,171.19,0.87571866]
[1730383580064,20.4307,171.31,171.2,0.1]
[1730383580357,5.8373,171.31,171.2,0.1]
[1730383580558,35.1241,171.31,171.19,0.87571866]
[1730383580760,0.1,171.23,171.09,16.2358]
[1730383580936,43.41420364,171.13,171.09,16.2358]
[1730383581140,43.41420364,171.27,171.09,80.10680364]
[1730383581141,43.41420364,171.15,171.09,80.10680364]
[1730383581353,43.41420364,171.15,171.09,80.20680364]
[1730383581529,43.41420364,171.12,171.09,30.8479]
[1730383581735,43.41420364,171.11,171.09,16.2358]
[1730383582364,43.41420364,171.1,171.05,14.6152]
[1730383582632,5.8424,171.16,171.05,14.7152]
[1730383582633,43.41420364,171.09,171.05,14.7152]
[1730383582854,43.41420364,171.12,171.06,43.41420364]
[1730383583052,43.41420364,171.13,171.08,43.41420364]
[1730383583259,20.4395,171.24,171.1,0.1]
[1730383583449,43.41420364,171.14,171.09,0.1]
[1730383583654,43.41420364,171.14,171.1,0.1]
[1730383583848,43.41420364,171.14,171.09,14.7113]
[1730383584057,43.41420364,171.13,171.09,14.6113]
[1730383584249,43.41420364,171.14,171.09,14.6113]
[1730383584762,43.41420364,171.15,171.1,0.1]
[1730383584942,43.41420364,171.15,171.1,43.51420364]
[1730383585146,43.41420364,171.14,171.11,0.1]
[1730383585359,43.41420364,171.18,171.09,14.6113]
[1730383585660,43.41420364,171.13,171.09,20.4561]
[1730383585866,43.41420364,171.14,171.09,93.19460364]
[1730383586665,43.41420364,171.13,171.09,20.4561]
[1730383586961,43.41420364,171.1,171.05,14.6156]
[1730383587162,43.41420364,171.09,171.05,14.6156]
[1730383587366,0.22549,171.21,171.05,58.02980364]
[1730383587572,43.41420364,171.09,171.05,20.5618]
[1730383587751,43.41420364,171.06,171.05,14.6156]
[1730383587953,43.41420364,171.06,171.02,15.2992]
[1730383588270,43.41420364,171.05,171.02,15.2992]
[1730383588470,43.41420364,171.05,171.0,43.41420364]
[1730383588663,43.41420364,171.01,170.99,0.87693526]
[1730383588864,86.82840728,171.0,170.99,0.87693526]
[1730383589045,86.95389728,171.0,170.99,0.87693526]
[1730383589445,92.80179728,171.0,170.99,0.87693526]
[1730383589862,0.25098,170.99,170.9,14.6278]
[1730383590170,43.41420364,170.91,170.9,14.6278]
[1730383590355,43.41420364,170.91,170.88,5.8518]
[1730383590556,43.41420364,170.92,170.88,5.8518]
[1730383590758,0.25098,170.99,170.88,63.89610364]
[1730383590759,43.41420364,170.93,170.88,63.89610364]
[1730383590963,0.25098,170.99,170.88,20.4819]
[1730383590964,43.41420364,170.9,170.88,20.4819]
[1730383591163,43.41420364,170.91,170.88,20.4819]
[1730383591672,43.41420364,170.92,170.88,20.4819]
[1730383591875,43.41420364,170.97,170.91,43.41420364]
[1730383592056,43.41420364,170.98,170.92,0.1]
[1730383592381,43.41420364,170.98,170.91,0.1]
[1730383592670,43.41420364,170.98,170.92,43.41420364]
[1730383592855,43.41420364,170.95,170.89,63.41420364]
[1730383593061,43.41420364,170.95,170.9,43.41420364]
[1730383593575,43.41420364,170.96,170.91,20.4785]
[1730383593744,43.41420364,170.96,170.91,63.99270364]
[1730383593947,43.41420364,171.01,170.95,43.41420364]
[1730383594148,5.8455,171.07,170.91,63.89270364]
[1730383594149,43.41420364,170.96,170.91,20.4785]
[1730383594456,6.06655582,171.01,170.87,16.0416]
[1730383595081,0.1,171.04,170.87,16.1416]
[1730383595270,6.06350666,171.03,170.87,16.1416]
[1730383595445,43.41420364,170.94,170.89,43.41420364]
[1730383595647,43.41420364,170.94,170.87,16.1416]
[1730383595648,43.41420364,170.94,170.88,43.41420364]
[1730383595875,43.41420364,170.93,170.88,43.41420364]
[1730383596081,43.41420364,170.93,170.84,0.1]
[1730383596082,43.41420364,170.89,170.84,43.41420364]
[1730383596368,43.41420364,170.89,170.83,43.41420364]
[1730383596574,43.41420364,170.88,170.82,49.43430364]
[1730383596753,43.41420364,170.9,170.84,43.41420364]
[1730383596962,43.41420364,170.89,170.83,43.41420364]
[1730383597169,43.41420364,170.94,170.88,43.41420364]
[1730383597348,20.4666,171.01,170.82,49.53430364]
[1730383597349,43.41420364,170.96,170.9,43.41420364]
[1730383597850,43.41420364,170.95,170.89,43.41420364]
[1730383598045,43.41420364,170.96,170.91,43.41420364]
[1730383598284,43.41420364,170.93,170.87,43.41420364]
[1730383598862,0.25098,170.95,170.86,0.8776086]
[1730383598863,43.41420364,170.9,170.86,0.8776086]
[1730383599264,43.41420364,170.91,170.86,0.8776086]
[1730383599874,43.41420364,170.91,170.86,44.29181224]
[1730383599875,0.25098,170.91,170.86,44.29181224]
[1730383600074,0.12549,170.91,170.87,43.41420364]
[1730383600253,43.41420364,170.93,170.88,43.41420364]
[1730383600460,43.41420364,170.92,170.86,44.29181224]
[1730383600870,43.41420364,170.9,170.86,0.8776086]
[1730383601065,43.41420364,170.92,170.86,44.29181224]
[1730383601270,43.41420364,170.93,170.87,43.41420364]
[1730383601455,43.41420364,170.93,170.86,0.8776086]
[1730383601456,43.66518364,170.94,170.88,43.41420364]
[1730383601774,5.8498,170.95,170.89,43.41420364]
[1730383601775,49.26380364,170.95,170.89,43.41420364]
[1730383602081,43.41420364,170.94,170.89,43.41420364]
[1730383602689,49.26380364,170.95,170.89,43.41420364]
[1730383602858,49.26380364,170.95,170.9,43.41420364]
[1730383603059,29.3384,171.01,170.86,0.8776086]
[1730383603060,43.41420364,170.98,170.92,43.41420364]
[1730383603284,43.41420364,170.99,170.94,43.41420364]
[1730383603461,43.41420364,171.0,170.95,43.41420364]
[1730383603870,43.41420364,171.0,170.94,43.41420364]
[1730383604062,43.41420364,171.02,170.96,43.41420364]
[1730383604286,43.41420364,171.02,170.97,43.41420364]
[1730383605373,43.41420364,171.02,170.96,43.41420364]
[1730383605569,43.41420364,171.02,170.92,16.5568]
[1730383605570,43.41420364,170.98,170.92,59.97100364]
[1730383605874,43.41420364,170.95,170.9,43.41420364]
[1730383606080,43.41420364,170.96,170.9,43.41420364]
[1730383606277,43.41420364,170.96,170.91,43.41420364]
[1730383606897,49.26350364,170.96,170.91,43.41420364]
[1730383607065,43.41420364,170.97,170.92,43.41420364]
[1730383607565,43.41420364,170.97,170.86,17.3196086]
[1730383607566,43.41420364,171.01,170.95,43.41420364]
[1730383607891,0.1,171.06,170.88,0.1]
[1730383607892,43.41420364,170.99,170.93,43.41420364]
[1730383608088,43.41420364,171.01,170.96,43.41420364]
[1730383608262,43.41420364,171.02,170.96,43.41420364]
[1730383608469,43.41420364,171.02,170.97,43.41420364]
[1730383608868,49.26140364,171.02,170.96,43.41420364]
[1730383609085,43.41420364,171.02,170.97,43.41420364]
[1730383609594,43.41420364,171.02,170.96,43.41420364]
[1730383609770,43.41420364,171.02,170.97,43.41420364]
[1730383610165,43.41420364,171.02,170.87,23.776884]
[1730383610166,43.41420364,170.99,170.93,43.41420364]
[1730383610384,43.41420364,170.98,170.93,43.41420364]
[1730383610687,43.41420364,170.99,170.93,43.41420364]
[1730383610885,43.41420364,170.98,170.93,43.41420364]
[1730383611189,49.26260364,170.99,170.93,43.41420364]
[1730383611495,49.26220364,171.0,170.95,43.41420364]
[1730383611666,43.66518364,171.01,170.95,43.41420364]
[1730383611865,43.66518364,171.01,170.91,43.41420364]
[1730383611866,43.41420364,171.03,170.97,43.41420364]
[1730383612067,43.41420364,171.04,170.99,43.41420364]
[1730383612270,43.41420364,171.02,170.96,43.41420364]
[1730383612482,43.41420364,170.98,170.92,43.41420364]
[1730383612667,6.08039223,171.04,170.91,0.1]
[1730383612987,49.26050364,171.05,170.99,43.41420364]
[1730383613176,43.41420364,171.02,170.97,43.41420364]
[1730383613382,43.41420364,170.98,170.92,43.41420364]
[1730383613686,5.9463,171.05,170.94,43.41420364]
[1730383613687,43.41420364,171.0,170.94,43.41420364]
[1730383614188,23.902374,171.03,170.88,6.351]
[1730383614370,43.41420364,170.98,170.92,43.41420364]
[1730383614572,43.41420364,170.99,170.94,43.41420364]
[1730383614894,43.41420364,171.0,170.94,43.41420364]
[1730383615076,43.41420364,170.97,170.94,20.475]
[1730383615274,43.41420364,170.97,170.92,43.41420364]
[1730383615492,43.41420364,170.96,170.92,5.8506]
[1730383615787,43.41420364,170.94,170.9,5.851]
[1730383616001,49.26210364,171.0,170.89,43.41420364]
[1730383616002,43.41420364,170.93,170.89,14.6291]
[1730383616494,43.41420364,170.96,170.91,43.41420364]
[1730383616673,43.41420364,170.96,170.9,43.41420364]
[1730383616873,43.41420364,170.94,170.89,14.6291]
[1730383617100,43.41420364,170.94,170.89,63.89500364]
[1730383617304,43.53969364,170.94,170.89,20.4808]
[1730383617466,43.41420364,170.93,170.89,20.4808]
[1730383617678,43.41420364,170.95,170.89,63.89500364]
[1730383617998,43.41420364,170.94,170.89,63.89500364]
[1730383618297,43.41420364,170.94,170.89,20.4808]
[1730383618675,43.41420364,170.95,170.9,43.41420364]
[1730383619089,43.41420364,170.94,170.9,5.8511]
[1730383619791,0.12549,170.95,170.9,63.89370364]
[1730383620095,0.12549,170.96,170.92,43.41420364]
[1730383620304,43.41420364,170.99,170.94,43.41420364]
[1730383620471,43.41420364,171.02,170.97,43.41420364]
[1730383620665,5.8459,171.06,170.97,43.41420364]
[1730383620901,43.41420364,171.03,170.98,43.41420364]
[1730383621193,43.41420364,171.04,170.99,43.41420364]
[1730383621396,43.41420364,171.04,170.98,43.41420364]
[1730383621621,43.41420364,171.06,171.0,43.41420364]
[1730383621767,6.0792186,171.09,171.04,43.41420364]
[1730383621768,43.41420364,171.09,171.04,43.41420364]
[1730383621969,43.41420364,171.1,171.04,44.29096508]
[1730383622319,43.41420364,171.11,171.06,43.41420364]
[1730383622501,43.41420364,171.14,171.08,43.41420364]
[1730383623110,43.41420364,171.13,171.08,5.8452]
[1730383623270,43.41420364,171.09,171.04,0.87676144]
[1730383623487,43.41420364,171.09,171.04,44.29096508]
[1730383623726,43.41420364,171.09,171.04,50.13746508]
[1730383623894,12.02122278,171.13,171.04,0.87676144]
[1730383624084,0.1,171.11,171.04,0.87676144]
[1730383624288,43.41420364,171.05,171.04,0.87676144]
[1730383625003,43.53969364,171.05,171.04,6.72326144]
[1730383625183,38.30622278,171.13,171.04,6.72316144]
[1730383625184,5.8445,171.11,171.04,6.72316144]
[1730383625384,20.68622278,171.13,171.04,64.75376508]
[1730383625385,43.41420364,171.09,171.04,64.75376508]
[1730383625600,43.41420364,171.1,171.05,43.41420364]
[1730383626008,43.41420364,171.1,171.04,64.75376508]
[1730383626190,43.41420364,171.1,171.05,43.41420364]
[1730383626397,43.41420364,171.1,171.04,64.75376508]
[1730383626693,43.41420364,171.08,171.04,15.49316144]
[1730383626892,43.41420364,171.09,171.04,58.90736508]
[1730383627092,43.41420364,171.09,171.04,21.33966144]
[1730383627411,43.41420364,171.09,171.04,64.75386508]
[1730383627600,43.41420364,171.1,171.05,43.41420364]
[1730383627802,0.12549,171.09,171.05,43.41420364]
[1730383628024,43.41420364,171.12,171.07,43.41420364]
[1730383628243,43.41420364,171.11,171.06,43.41420364]
[1730383628416,43.41420364,171.12,171.07,43.41420364]
[1730383628615,5.8411,171.2,171.05,20.0]
[1730383629109,11.91720831,171.2,171.07,20.0]
[1730383629314,11.91720831,171.2,171.09,20.0]
[1730383629538,5.8411,171.2,171.09,20.0]
[1730383629713,26.56720386,171.2,171.14,26.56720386]
[1730383629911,26.56720386,171.19,171.13,26.56720386]
[1730383630311,26.56720386,171.19,171.14,26.56720386]
[1730383630524,6.07725225,171.23,171.14,43.13579211]
[1730383630525,43.13579211,171.2,171.14,43.13579211]
[1730383630736,43.13579211,171.2,171.15,43.13579211]
[1730383630937,6.07725225,171.23,171.19,43.13579211]
[1730383631122,48.97489211,171.26,171.2,48.97669211]
[1730383631327,0.1,171.25,171.12,5.8438]
[1730383631525,0.1,171.22,171.09,20.4569]
[1730383632243,0.1,171.2,171.09,20.4569]
[1730383632421,43.13579211,171.12,171.09,20.4569]
[1730383632622,43.13579211,171.13,171.09,20.4569]
[1730383632820,43.38677211,171.1,171.05,63.59679211]
[1730383633042,43.13579211,171.09,171.05,14.6148]
[1730383633333,43.13579211,171.08,171.05,14.6148]
[1730383633550,0.25098,171.1,171.05,63.59679211]
[1730383633748,43.13579211,171.09,171.05,20.461]
[1730383634259,43.38677211,171.1,171.05,20.461]
[1730383634541,43.13579211,171.09,171.05,20.461]
[1730383634718,43.13579211,171.09,171.04,44.01255355]
[1730383634719,43.26128211,171.08,171.04,0.87676144]
[1730383634931,43.13579211,171.08,171.04,0.87676144]
[1730383635241,43.13579211,171.07,171.04,0.87676144]
[1730383635447,43.13579211,171.08,171.04,21.33956144]
[1730383635648,0.12549,171.07,171.04,21.33956144]
[1730383635847,43.13579211,171.1,171.05,43.13579211]
[1730383636009,43.13579211,171.11,171.06,43.13579211]
[1730383636207,43.13579211,171.13,171.08,43.13579211]
[1730383636626,43.13579211,171.13,171.07,43.13579211]
[1730383636829,43.13579211,171.1,171.05,43.13579211]
[1730383637016,43.13579211,171.08,171.04,21.33956144]
[1730383637397,43.13579211,171.09,171.04,21.33956144]
[1730383637720,43.38677211,171.1,171.05,43.13579211]
[1730383638030,43.13579211,171.1,171.05,43.13579211]
[1730383638319,43.13579211,171.1,171.04,64.47535355]
[1730383638837,43.13579211,171.12,171.06,43.13579211]
[1730383639138,43.13579211,171.12,171.07,43.13579211]
[1730383639541,43.13579211,171.11,171.07,14.6134]
[1730383639724,43.13579211,171.11,171.05,48.98199211]
[1730383639725,43.13579211,171.09,171.05,5.8462]
[1730383639923,43.13579211,171.08,171.04,21.33966144]
[1730383640319,23.776884,171.12,171.05,43.13579211]
[1730383640320,0.25098,171.09,171.05,43.13579211]
[1730383640625,43.13579211,171.11,171.06,43.13579211]
[1730383641022,43.13579211,171.11,171.05,43.13579211]
[1730383641221,43.13579211,171.12,171.06,43.13579211]
[1730383641415,43.13579211,171.13,171.07,63.59519211]
[1730383641935,43.13579211,171.14,171.08,43.13579211]
[1730383642950,43.13579211,171.16,171.11,43.13579211]
[1730383643252,43.13579211,171.19,171.14,43.13579211]
[1730383643426,43.13579211,171.2,171.16,5.8424]
[1730383643617,43.13579211,171.22,171.16,48.97819211]
[1730383643817,5.8394,171.25,171.16,5.8424]
[1730383644125,43.13579211,171.21,171.16,5.8424]
[1730383644343,43.13579211,171.22,171.17,43.13579211]
[1730383644528,43.13579211,171.24,171.18,43.13579211]
[1730383645040,43.13579211,171.24,171.19,43.13579211]
[1730383645241,43.13579211,171.24,171.16,20.4486]
[1730383645242,43.13579211,171.24,171.18,43.13579211]
[1730383645625,43.13579211,171.23,171.17,63.58319211]
[1730383645947,43.13579211,171.23,171.18,43.13579211]
[1730383646126,43.13579211,171.19,171.15,21.5459]
[1730383646327,43.13579211,171.21,171.15,64.68169211]
[1730383646527,43.13579211,171.23,171.17,43.13579211]
[1730383646858,43.13579211,171.25,171.2,43.13579211]
[1730383647153,43.13579211,171.26,171.21,43.13579211]
[1730383647369,43.13579211,171.23,171.17,43.13579211]
[1730383647534,43.13579211,171.23,171.18,57.74029211]
[1730383647924,43.13579211,171.24,171.18,57.74029211]